[Event "Early Titled Tuesday Blitz | February 8 2022"]
[White "Tarhan, Adar"]
[Black "Cramling Bellon, Anna"]
[WhiteFideId "34544712"]
[BlackFideId "32009232"]
[WhiteElo "1802"]
[BlackElo "1905"]
[Result "0-1"]
[Round "02"]
[TimeControl "180+1"]
[Date "2022.02.08"]
[WhiteClock "0:00:01"]
[BlackClock "0:00:02"]

1. e4 {[%clk 0:02:54]}  c5 {[%clk 0:02:59]} 2. Nf3 {[%clk 0:02:46]}  e6 {[%clk 0:02:55]} 3. d4 {[%clk 0:02:45]}  cxd4 {[%clk 0:02:56]} 4. Nxd4 {[%clk 0:02:46]}  Nc6 {[%clk 0:02:56]} 5. Nc3 {[%clk 0:02:44]}  Bb4 {[%clk 0:02:55]} 6. Nb5 {[%clk 0:02:41]}  d6 {[%clk 0:02:53]} 7. a3 {[%clk 0:02:40]}  Bxc3+ {[%clk 0:02:17]} 8. Nxc3 {[%clk 0:02:41]}  Ke7 {[%clk 0:02:18]} 9. Bd3 {[%clk 0:02:24]}  Nf6 {[%clk 0:02:17]} 10. O-O {[%clk 0:02:23]}  Re8 {[%clk 0:02:16]} 11. Be3 {[%clk 0:02:21]}  Kf8 {[%clk 0:02:14]} 12. Be2 {[%clk 0:02:18]}  a6 {[%clk 0:02:11]} 13. Bf3 {[%clk 0:02:16]}  Ne5 {[%clk 0:02:10]} 14. Be2 {[%clk 0:02:11]}  b5 {[%clk 0:02:03]} 15. f4 {[%clk 0:02:10]}  Nc4 {[%clk 0:02:00]} 16. Bxc4 {[%clk 0:02:09]}  bxc4 {[%clk 0:02:01]} 17. Qd2 {[%clk 0:02:00]}  Bb7 {[%clk 0:02:00]} 18. Rad1 {[%clk 0:01:42]}  Nxe4 {[%clk 0:01:47]} 19. Nxe4 {[%clk 0:01:42]}  Bxe4 {[%clk 0:01:48]} 20. Qb4 {[%clk 0:01:41]}  Bd5 {[%clk 0:01:39]} 21. f5 {[%clk 0:01:30]}  Rb8 {[%clk 0:01:36]} 22. Qc3 {[%clk 0:01:30]}  Kg8 {[%clk 0:01:27]} 23. f6 {[%clk 0:01:26]}  Qc7 {[%clk 0:00:51]} 24. Bd4 {[%clk 0:01:09]}  Qc6 {[%clk 0:00:24]} 25. Qg3 {[%clk 0:01:07]}  g6 {[%clk 0:00:23]} 26. Qg5 {[%clk 0:01:07]}  Kh8 {[%clk 0:00:12]} 27. Qh6 {[%clk 0:01:05]}  Rg8 {[%clk 0:00:12]} 28. Rf4 {[%clk 0:01:04]}  g5 {[%clk 0:00:11]} 29. Rg4 {[%clk 0:01:03]}  Bxg2 {[%clk 0:00:11]} 30. Rxg2 {[%clk 0:00:59]}  Qf3 {[%clk 0:00:12]} 31. Rf1 {[%clk 0:00:55]}  Qe4 {[%clk 0:00:12]} 32. Bc3 {[%clk 0:00:54]}  d5 {[%clk 0:00:12]} 33. Re1 {[%clk 0:00:46]}  Qf5 {[%clk 0:00:12]} 34. Re5 {[%clk 0:00:41]}  Qf4 {[%clk 0:00:11]} 35. Rexg5 {[%clk 0:00:14]}  Qc1+ {[%clk 0:00:11]} 36. Kf2 {[%clk 0:00:13]}  Qxc2+ {[%clk 0:00:09]} 37. Kf1 {[%clk 0:00:07]}  Qd1+ {[%clk 0:00:09]} 38. Be1 {[%clk 0:00:07]}  Qf3+ {[%clk 0:00:09]} 39. Kg1 {[%clk 0:00:07]}  Qe3+ {[%clk 0:00:09]} 40. Kh1 {[%clk 0:00:05]}  Qxe1+ {[%clk 0:00:09]} 41. Rg1 {[%clk 0:00:05]}  Qe4+ {[%clk 0:00:08]} 42. R1g2 {[%clk 0:00:06]}  Qe1+ {[%clk 0:00:05]} 43. Rg1 {[%clk 0:00:06]}  Qe4+ {[%clk 0:00:03]} 44. R5g2 {[%clk 0:00:04]}  Rxg2 {[%clk 0:00:02]} 45. Rxg2 {[%clk 0:00:04]}  Rg8 {[%clk 0:00:01]} 46. Qd2 {[%clk 0:00:01]}  Qb1+ {[%clk 0:00:02]} 47. Rg1 {[%clk 0:00:01]}  Qxg1# {[%clk 0:00:02]} 0-1


[Site "https://www.chess.com"]

[Event "Early Titled Tuesday Blitz | February 8 2022"]
[White "Triapishko, Alexandr"]
[Black "Khumalo, Keith"]
[WhiteFideId "14122286"]
[BlackFideId "14319470"]
[WhiteElo "2479"]
[BlackElo "1992"]
[Result "1/2-1/2"]
[Round "02"]
[TimeControl "180+1"]
[Date "2022.02.08"]
[WhiteClock "0:00:21"]
[BlackClock "0:02:42"]

1. d4 {[%clk 0:02:25]}  d5 {[%clk 0:02:57]} 2. c4 {[%clk 0:02:23]}  dxc4 {[%clk 0:02:57]} 3. Nf3 {[%clk 0:02:23]}  Nf6 {[%clk 0:02:57]} 4. e3 {[%clk 0:02:23]}  e6 {[%clk 0:02:57]} 5. Bxc4 {[%clk 0:02:24]}  c5 {[%clk 0:02:58]} 6. O-O {[%clk 0:02:24]}  a6 {[%clk 0:02:58]} 7. Nc3 {[%clk 0:02:19]}  Nc6 {[%clk 0:02:59]} 8. dxc5 {[%clk 0:02:09]}  Qxd1 {[%clk 0:02:58]} 9. Rxd1 {[%clk 0:02:10]}  Bxc5 {[%clk 0:02:59]} 10. Be2 {[%clk 0:02:02]}  Bd7 {[%clk 0:02:58]} 11. Nd2 {[%clk 0:02:00]}  b5 {[%clk 0:02:56]} 12. Nb3 {[%clk 0:01:59]}  Bb4 {[%clk 0:02:55]} 13. a4 {[%clk 0:01:55]}  bxa4 {[%clk 0:02:55]} 14. Nxa4 {[%clk 0:01:54]}  a5 {[%clk 0:02:49]} 15. Nb6 {[%clk 0:01:29]}  Rb8 {[%clk 0:02:44]} 16. Nxd7 {[%clk 0:01:29]}  Nxd7 {[%clk 0:02:45]} 17. Bd2 {[%clk 0:01:05]}  Bxd2 {[%clk 0:02:43]} 18. Nxd2 {[%clk 0:00:34]}  Rxb2 {[%clk 0:02:43]} 19. Bf3 {[%clk 0:00:32]}  Nde5 {[%clk 0:02:42]} 20. Bxc6+ {[%clk 0:00:28]}  Nxc6 {[%clk 0:02:43]} 21. Nc4 {[%clk 0:00:29]}  Rc2 {[%clk 0:02:43]} 22. Nxa5 {[%clk 0:00:23]}  Nxa5 {[%clk 0:02:43]} 23. Rxa5 {[%clk 0:00:24]}  O-O {[%clk 0:02:44]} 24. g3 {[%clk 0:00:20]}  g6 {[%clk 0:02:44]} 25. Rda1 {[%clk 0:00:20]}  Kg7 {[%clk 0:02:43]} 26. Kg2 {[%clk 0:00:21]}  h5 {[%clk 0:02:44]} 27. Ra8 {[%clk 0:00:20]}  Rxa8 {[%clk 0:02:42]} 28. Rxa8 {[%clk 0:00:21]}  Rb2 {[%clk 0:02:42]} 29. h4 {[%clk 0:00:21]} 1/2-1/2


[Site "https://www.chess.com"]

[Event "Early Titled Tuesday Blitz | February 8 2022"]
[White "Tsvetkov, Andrey"]
[Black "Bruned, Yvain"]
[WhiteFideId "34139360"]
[BlackFideId "2250292"]
[WhiteElo "2280"]
[BlackElo "2073"]
[Result "0-1"]
[Round "02"]
[TimeControl "180+1"]
[Date "2022.02.08"]
[WhiteClock "0:00:41"]
[BlackClock "0:00:31"]

1. f4 {[%clk 0:03:00]}  b6 {[%clk 0:02:59]} 2. e4 {[%clk 0:03:00]}  Bb7 {[%clk 0:03:00]} 3. Nc3 {[%clk 0:02:59]}  e6 {[%clk 0:02:59]} 4. d4 {[%clk 0:02:59]}  Bb4 {[%clk 0:02:57]} 5. Bd3 {[%clk 0:02:59]}  f5 {[%clk 0:02:56]} 6. Qe2 {[%clk 0:02:48]}  Bxc3+ {[%clk 0:02:54]} 7. bxc3 {[%clk 0:02:48]}  fxe4 {[%clk 0:02:55]} 8. Bxe4 {[%clk 0:02:49]}  Bxe4 {[%clk 0:02:55]} 9. Qxe4 {[%clk 0:02:50]}  Nc6 {[%clk 0:02:56]} 10. Nf3 {[%clk 0:02:50]}  Nf6 {[%clk 0:02:56]} 11. Qe2 {[%clk 0:02:49]}  O-O {[%clk 0:02:57]} 12. c4 {[%clk 0:02:43]}  Qe8 {[%clk 0:02:30]} 13. O-O {[%clk 0:02:42]}  Qg6 {[%clk 0:02:26]} 14. Ba3 {[%clk 0:02:42]}  Rfe8 {[%clk 0:02:24]} 15. Rad1 {[%clk 0:02:42]}  Qe4 {[%clk 0:02:21]} 16. Qd2 {[%clk 0:02:38]}  d5 {[%clk 0:02:00]} 17. Rfe1 {[%clk 0:02:36]}  Qf5 {[%clk 0:01:59]} 18. cxd5 {[%clk 0:02:32]}  exd5 {[%clk 0:01:57]} 19. Qc3 {[%clk 0:02:32]}  Qd7 {[%clk 0:01:53]} 20. Ne5 {[%clk 0:02:31]}  Nxe5 {[%clk 0:01:52]} 21. dxe5 {[%clk 0:02:32]}  Ng4 {[%clk 0:01:46]} 22. Qf3 {[%clk 0:02:20]}  Rad8 {[%clk 0:01:42]} 23. Kh1 {[%clk 0:01:50]}  c5 {[%clk 0:01:35]} 24. e6 {[%clk 0:01:34]}  Rxe6 {[%clk 0:01:32]} 25. Rxe6 {[%clk 0:01:34]}  Qxe6 {[%clk 0:01:33]} 26. f5 {[%clk 0:01:35]}  Qe4 {[%clk 0:01:30]} 27. Qg3 {[%clk 0:01:24]}  Qxf5 {[%clk 0:01:21]} 28. Re1 {[%clk 0:01:19]}  Rf8 {[%clk 0:01:17]} 29. h3 {[%clk 0:01:17]}  Nf2+ {[%clk 0:01:17]} 30. Kh2 {[%clk 0:01:16]}  Ne4 {[%clk 0:01:18]} 31. Qc7 {[%clk 0:01:16]}  Qf4+ {[%clk 0:01:11]} 32. Qxf4 {[%clk 0:01:17]}  Rxf4 {[%clk 0:01:12]} 33. c4 {[%clk 0:01:18]}  Nf6 {[%clk 0:00:58]} 34. cxd5 {[%clk 0:01:16]}  Nxd5 {[%clk 0:00:59]} 35. Re8+ {[%clk 0:01:00]}  Rf8 {[%clk 0:00:58]} 36. Re5 {[%clk 0:01:00]}  Rd8 {[%clk 0:00:57]} 37. Bb2 {[%clk 0:01:00]}  Kf7 {[%clk 0:00:57]} 38. Rf5+ {[%clk 0:01:00]}  Nf6 {[%clk 0:00:57]} 39. Rf2 {[%clk 0:00:55]}  h6 {[%clk 0:00:56]} 40. g4 {[%clk 0:00:55]}  Kg6 {[%clk 0:00:54]} 41. Kg3 {[%clk 0:00:55]}  Rd3+ {[%clk 0:00:54]} 42. Kg2 {[%clk 0:00:54]}  c4 {[%clk 0:00:53]} 43. Rc2 {[%clk 0:00:52]}  b5 {[%clk 0:00:53]} 44. a4 {[%clk 0:00:52]}  a6 {[%clk 0:00:53]} 45. axb5 {[%clk 0:00:53]}  axb5 {[%clk 0:00:54]} 46. Be5 {[%clk 0:00:51]}  Ne4 {[%clk 0:00:54]} 47. Bf4 {[%clk 0:00:50]}  c3 {[%clk 0:00:46]} 48. Kf1 {[%clk 0:00:48]}  b4 {[%clk 0:00:46]} 49. Ke1 {[%clk 0:00:49]}  b3 {[%clk 0:00:45]} 50. Ke2 {[%clk 0:00:47]}  Rd5 {[%clk 0:00:40]} 51. Rc1 {[%clk 0:00:47]}  c2 {[%clk 0:00:37]} 52. Ke3 {[%clk 0:00:42]}  Nf6 {[%clk 0:00:37]} 53. g5 {[%clk 0:00:40]}  hxg5 {[%clk 0:00:35]} 54. Rg1 {[%clk 0:00:41]}  b2 {[%clk 0:00:35]} 55. Kf3 {[%clk 0:00:39]}  b1=Q {[%clk 0:00:34]} 56. Bc1 {[%clk 0:00:38]}  Rd1 {[%clk 0:00:33]} 57. Kg2 {[%clk 0:00:39]}  Rxg1+ {[%clk 0:00:32]} 58. Kh2 {[%clk 0:00:40]}  Qxc1 {[%clk 0:00:31]} 59. h4 {[%clk 0:00:41]}  Qf4+ {[%clk 0:00:31]} 60. Kh3 {[%clk 0:00:41]}  Qxh4# {[%clk 0:00:31]} 0-1


[Site "https://www.chess.com"]

[Event "Early Titled Tuesday Blitz | February 8 2022"]
[White "Tuleyeva-Aketayeva, Dana"]
[Black "Heinemann, Josefine"]
[WhiteFideId "13701932"]
[BlackFideId "12900460"]
[WhiteElo "1944"]
[BlackElo "2300"]
[Result "0-1"]
[Round "02"]
[TimeControl "180+1"]
[Date "2022.02.08"]
[WhiteClock "0:00:02"]
[BlackClock "0:00:04"]

1. d4 {[%clk 0:03:00]}  Nf6 {[%clk 0:02:57]} 2. Nf3 {[%clk 0:03:00]}  g6 {[%clk 0:02:51]} 3. g3 {[%clk 0:03:00]}  Bg7 {[%clk 0:02:50]} 4. Bg2 {[%clk 0:03:01]}  O-O {[%clk 0:02:50]} 5. O-O {[%clk 0:03:02]}  d5 {[%clk 0:02:46]} 6. c4 {[%clk 0:03:01]}  dxc4 {[%clk 0:02:46]} 7. Ne5 {[%clk 0:03:00]}  Ng4 {[%clk 0:02:27]} 8. Nxg4 {[%clk 0:02:54]}  Bxg4 {[%clk 0:02:28]} 9. Bxb7 {[%clk 0:02:54]}  c6 {[%clk 0:02:22]} 10. Bxa8 {[%clk 0:02:43]}  Qb6 {[%clk 0:02:10]} 11. Na3 {[%clk 0:02:17]}  Nd7 {[%clk 0:01:48]} 12. Nxc4 {[%clk 0:02:08]}  Qa6 {[%clk 0:01:48]} 13. b3 {[%clk 0:01:54]}  Rxa8 {[%clk 0:01:46]} 14. f3 {[%clk 0:01:45]}  Bh3 {[%clk 0:01:33]} 15. Re1 {[%clk 0:01:44]}  Rd8 {[%clk 0:01:12]} 16. Qd3 {[%clk 0:01:28]}  Nc5 {[%clk 0:00:59]} 17. Qb1 {[%clk 0:01:10]}  Bxd4+ {[%clk 0:00:57]} 18. Be3 {[%clk 0:01:11]}  Bxa1 {[%clk 0:00:53]} 19. Qxa1 {[%clk 0:01:10]}  Ne6 {[%clk 0:00:53]} 20. Rd1 {[%clk 0:01:06]}  Rxd1+ {[%clk 0:00:49]} 21. Qxd1 {[%clk 0:01:06]}  Qxa2 {[%clk 0:00:48]} 22. Ne5 {[%clk 0:00:59]}  Qa6 {[%clk 0:00:30]} 23. g4 {[%clk 0:00:34]}  h5 {[%clk 0:00:18]} 24. Kf2 {[%clk 0:00:32]}  hxg4 {[%clk 0:00:18]} 25. fxg4 {[%clk 0:00:28]}  Qb5 {[%clk 0:00:17]} 26. Nc4 {[%clk 0:00:06]}  Bxg4 {[%clk 0:00:16]} 27. Qd7 {[%clk 0:00:05]}  Qf5+ {[%clk 0:00:15]} 28. Ke1 {[%clk 0:00:05]}  Qb1+ {[%clk 0:00:14]} 29. Kf2 {[%clk 0:00:04]}  Qf5+ {[%clk 0:00:14]} 30. Ke1 {[%clk 0:00:04]}  Qf6 {[%clk 0:00:13]} 31. Qe8+ {[%clk 0:00:04]}  Kg7 {[%clk 0:00:13]} 32. Bc1 {[%clk 0:00:02]}  Qh4+ {[%clk 0:00:12]} 33. Kd1 {[%clk 0:00:02]}  Qxh2 {[%clk 0:00:10]} 34. Bb2+ {[%clk 0:00:02]}  f6 {[%clk 0:00:08]} 35. Qxc6 {[%clk 0:00:01]}  Qg1+ {[%clk 0:00:08]} 36. Kc2 {[%clk 0:00:01]}  Bxe2 {[%clk 0:00:06]} 37. Qxe6 {[%clk 0:00:01]}  Qd1+ {[%clk 0:00:07]} 38. Kc3 {[%clk 0:00:01]}  Qd3+ {[%clk 0:00:07]} 39. Kb4 {[%clk 0:00:01]}  Bg4 {[%clk 0:00:01]} 40. Qxe7+ {[%clk 0:00:02]}  Kh6 {[%clk 0:00:01]} 41. Qxf6 {[%clk 0:00:02]}  Qf5 {[%clk 0:00:01]} 42. Qxf5 {[%clk 0:00:02]}  Bxf5 {[%clk 0:00:02]} 43. Be5 {[%clk 0:00:02]}  g5 {[%clk 0:00:02]} 44. Bg3 {[%clk 0:00:03]}  g4 {[%clk 0:00:02]} 45. Ne5 {[%clk 0:00:04]}  Be6 {[%clk 0:00:02]} 46. Bf2 {[%clk 0:00:04]}  Kg5 {[%clk 0:00:03]} 47. Bxa7 {[%clk 0:00:03]}  Kf5 {[%clk 0:00:02]} 48. Nd3 {[%clk 0:00:03]}  g3 {[%clk 0:00:02]} 49. Nc5 {[%clk 0:00:03]}  Bd5 {[%clk 0:00:02]} 50. Nd3 {[%clk 0:00:03]}  g2 {[%clk 0:00:02]} 51. Bg1 {[%clk 0:00:02]}  Ke4 {[%clk 0:00:03]} 52. Be3 {[%clk 0:00:03]}  Kxe3 {[%clk 0:00:03]} 53. Nc5 {[%clk 0:00:03]}  Bxb3 {[%clk 0:00:03]} 54. Nxb3 {[%clk 0:00:02]}  g1=Q {[%clk 0:00:04]} 0-1


[Site "https://www.chess.com"]

[Event "Early Titled Tuesday Blitz | February 8 2022"]
[White "Tymrakiewicz, Rafal"]
[Black "Bashirli, Saadat"]
[WhiteFideId "1108832"]
[BlackFideId "13429990"]
[WhiteElo "2205"]
[BlackElo "1173"]
[Result "1-0"]
[Round "02"]
[TimeControl "180+1"]
[Date "2022.02.08"]
[WhiteClock "0:01:16"]
[BlackClock "0:00:28"]

1. e4 {[%clk 0:03:00]}  c5 {[%clk 0:02:58]} 2. c3 {[%clk 0:03:00]}  Nf6 {[%clk 0:02:56]} 3. e5 {[%clk 0:03:00]}  Nd5 {[%clk 0:02:55]} 4. Nf3 {[%clk 0:03:01]}  g6 {[%clk 0:02:48]} 5. Bc4 {[%clk 0:02:50]}  Nb6 {[%clk 0:02:47]} 6. Bb3 {[%clk 0:02:44]}  c4 {[%clk 0:02:46]} 7. Bc2 {[%clk 0:02:43]}  Bg7 {[%clk 0:02:45]} 8. h4 {[%clk 0:02:43]}  h5 {[%clk 0:02:43]} 9. d4 {[%clk 0:02:37]}  cxd3 {[%clk 0:02:42]} 10. Qxd3 {[%clk 0:02:26]}  Nc6 {[%clk 0:02:40]} 11. Bf4 {[%clk 0:02:26]}  a6 {[%clk 0:02:14]} 12. Nbd2 {[%clk 0:02:22]}  Qc7 {[%clk 0:01:59]} 13. Qe2 {[%clk 0:02:20]}  Nd5 {[%clk 0:01:52]} 14. Bg3 {[%clk 0:02:20]}  e6 {[%clk 0:01:38]} 15. Nc4 {[%clk 0:02:16]}  O-O {[%clk 0:01:33]} 16. O-O {[%clk 0:02:15]}  Nce7 {[%clk 0:01:29]} 17. Nd6 {[%clk 0:02:12]}  Nf5 {[%clk 0:01:25]} 18. Nxf5 {[%clk 0:02:12]}  exf5 {[%clk 0:01:19]} 19. Rad1 {[%clk 0:02:11]}  Ne7 {[%clk 0:01:10]} 20. e6 {[%clk 0:02:07]}  f4 {[%clk 0:01:08]} 21. exd7 {[%clk 0:02:06]}  Bxd7 {[%clk 0:01:06]} 22. Qxe7 {[%clk 0:02:05]}  fxg3 {[%clk 0:00:55]} 23. Rxd7 {[%clk 0:02:05]}  gxf2+ {[%clk 0:00:54]} 24. Rxf2 {[%clk 0:02:01]}  Qf4 {[%clk 0:00:50]} 25. Bb3 {[%clk 0:01:31]}  Rae8 {[%clk 0:00:43]} 26. Bxf7+ {[%clk 0:01:29]}  Qxf7 {[%clk 0:00:42]} 27. Qxf7+ {[%clk 0:01:29]}  Rxf7 {[%clk 0:00:41]} 28. Rxf7 {[%clk 0:01:29]}  Kxf7 {[%clk 0:00:42]} 29. Ne5+ {[%clk 0:01:24]}  Kg8 {[%clk 0:00:37]} 30. Nxg6 {[%clk 0:01:24]}  Re1+ {[%clk 0:00:34]} 31. Kh2 {[%clk 0:01:22]}  Re6 {[%clk 0:00:34]} 32. Nf4 {[%clk 0:01:22]}  Be5 {[%clk 0:00:31]} 33. g3 {[%clk 0:01:22]}  Rh6 {[%clk 0:00:26]} 34. Nd3 {[%clk 0:01:19]}  Bc7 {[%clk 0:00:24]} 35. Kh3 {[%clk 0:01:18]}  Rg6 {[%clk 0:00:24]} 36. Nf4 {[%clk 0:01:17]}  Rh6 {[%clk 0:00:20]} 37. Nd5 {[%clk 0:01:16]}  Bd6 {[%clk 0:00:20]} 38. Rf6 {[%clk 0:01:13]}  Rxf6 {[%clk 0:00:18]} 39. Nxf6+ {[%clk 0:01:14]}  Kg7 {[%clk 0:00:18]} 40. Nxh5+ {[%clk 0:01:14]}  Kg6 {[%clk 0:00:19]} 41. g4 {[%clk 0:01:14]}  Be7 {[%clk 0:00:18]} 42. Nf4+ {[%clk 0:01:14]}  Kf6 {[%clk 0:00:18]} 43. Nd5+ {[%clk 0:01:14]}  Kf7 {[%clk 0:00:17]} 44. Nxe7 {[%clk 0:01:14]}  Kxe7 {[%clk 0:00:18]} 45. g5 {[%clk 0:01:15]}  Kd7 {[%clk 0:00:19]} 46. Kg4 {[%clk 0:01:15]}  Kd6 {[%clk 0:00:20]} 47. g6 {[%clk 0:01:16]}  Kd5 {[%clk 0:00:21]} 48. g7 {[%clk 0:01:16]}  Ke4 {[%clk 0:00:22]} 49. g8=Q {[%clk 0:01:17]}  Kd3 {[%clk 0:00:22]} 50. Qb3 {[%clk 0:01:15]}  Kd2 {[%clk 0:00:22]} 51. h5 {[%clk 0:01:16]}  Ke2 {[%clk 0:00:23]} 52. h6 {[%clk 0:01:16]}  Kf2 {[%clk 0:00:24]} 53. Qe6 {[%clk 0:01:16]}  Kg2 {[%clk 0:00:25]} 54. h7 {[%clk 0:01:16]}  Kh2 {[%clk 0:00:26]} 55. h8=Q+ {[%clk 0:01:16]}  Kg2 {[%clk 0:00:27]} 56. Qd4 {[%clk 0:01:15]}  Kh2 {[%clk 0:00:27]} 57. Qf2+ {[%clk 0:01:16]}  Kh1 {[%clk 0:00:28]} 58. Qee1# {[%clk 0:01:16]} 1-0


[Site "https://www.chess.com"]

[Event "Early Titled Tuesday Blitz | February 8 2022"]
[White "Urbina Perez, Juan Antonio"]
[Black "Schut, Han"]
[WhiteFideId "2217368"]
[BlackFideId "1005561"]
[WhiteElo "2192"]
[BlackElo "2057"]
[Result "0-1"]
[Round "02"]
[TimeControl "180+1"]
[Date "2022.02.08"]
[WhiteClock "0:00:55"]
[BlackClock "0:00:08"]

1. e4 {[%clk 0:03:00]}  c5 {[%clk 0:02:59]} 2. Nf3 {[%clk 0:03:00]}  d6 {[%clk 0:03:00]} 3. d4 {[%clk 0:02:58]}  cxd4 {[%clk 0:03:00]} 4. Nxd4 {[%clk 0:02:58]}  Nf6 {[%clk 0:03:01]} 5. Nc3 {[%clk 0:02:58]}  g6 {[%clk 0:03:00]} 6. Be3 {[%clk 0:02:58]}  Bg7 {[%clk 0:03:00]} 7. f3 {[%clk 0:02:58]}  O-O {[%clk 0:03:00]} 8. Qd2 {[%clk 0:02:59]}  Nc6 {[%clk 0:03:00]} 9. h4 {[%clk 0:02:59]}  d5 {[%clk 0:02:47]} 10. Nxc6 {[%clk 0:02:53]}  bxc6 {[%clk 0:02:47]} 11. O-O-O {[%clk 0:02:53]}  Rb8 {[%clk 0:01:57]} 12. h5 {[%clk 0:02:47]}  Qa5 {[%clk 0:01:55]} 13. hxg6 {[%clk 0:02:37]}  fxg6 {[%clk 0:01:28]} 14. Bd4 {[%clk 0:02:24]}  c5 {[%clk 0:00:48]} 15. Bxf6 {[%clk 0:02:06]}  Bxf6 {[%clk 0:00:49]} 16. Qxd5+ {[%clk 0:02:04]}  Kh8 {[%clk 0:00:39]} 17. e5 {[%clk 0:01:30]}  Bg5+ {[%clk 0:00:34]} 18. Rd2 {[%clk 0:01:25]}  Qb4 {[%clk 0:00:14]} 19. Nd1 {[%clk 0:01:09]}  Be6 {[%clk 0:00:11]} 20. Qd3 {[%clk 0:00:58]}  Rfd8 {[%clk 0:00:09]} 21. Qc3 {[%clk 0:00:55]}  Bxd2+ {[%clk 0:00:08]} 0-1


[Site "https://www.chess.com"]

[Event "Early Titled Tuesday Blitz | February 8 2022"]
[White "Vakhlamov, Igor L."]
[Black "Di Nicolantonio, Lucas"]
[WhiteFideId "24126748"]
[BlackFideId "680460"]
[WhiteElo "2401"]
[BlackElo "2381"]
[Result "1-0"]
[Round "02"]
[TimeControl "180+1"]
[Date "2022.02.08"]
[WhiteClock "0:00:34"]
[BlackClock "0:00:01"]

1. e4 {[%clk 0:03:00]}  c5 {[%clk 0:02:55]} 2. Nf3 {[%clk 0:03:01]}  Nc6 {[%clk 0:02:54]} 3. Nc3 {[%clk 0:03:01]}  e6 {[%clk 0:02:52]} 4. Bb5 {[%clk 0:02:58]}  Na5 {[%clk 0:02:50]} 5. O-O {[%clk 0:02:48]}  a6 {[%clk 0:02:48]} 6. Be2 {[%clk 0:02:48]}  b5 {[%clk 0:02:45]} 7. d4 {[%clk 0:02:43]}  cxd4 {[%clk 0:02:43]} 8. Nxd4 {[%clk 0:02:44]}  Bb7 {[%clk 0:02:42]} 9. Bf3 {[%clk 0:02:40]}  Ne7 {[%clk 0:02:25]} 10. Re1 {[%clk 0:02:33]}  Ng6 {[%clk 0:02:22]} 11. e5 {[%clk 0:02:23]}  Be7 {[%clk 0:02:08]} 12. Bxb7 {[%clk 0:02:18]}  Nxb7 {[%clk 0:02:09]} 13. Nf3 {[%clk 0:02:17]}  O-O {[%clk 0:02:04]} 14. Ne4 {[%clk 0:02:17]}  Qc7 {[%clk 0:01:59]} 15. Ng3 {[%clk 0:02:08]}  Rac8 {[%clk 0:01:52]} 16. c3 {[%clk 0:02:08]}  Rfd8 {[%clk 0:01:43]} 17. Qd4 {[%clk 0:02:01]}  d6 {[%clk 0:01:38]} 18. exd6 {[%clk 0:01:58]}  Nxd6 {[%clk 0:01:34]} 19. Qg4 {[%clk 0:01:46]}  Nc4 {[%clk 0:01:24]} 20. Qh5 {[%clk 0:01:38]}  Rd5 {[%clk 0:01:21]} 21. Qh3 {[%clk 0:01:32]}  Rcd8 {[%clk 0:01:15]} 22. b3 {[%clk 0:01:24]}  Nce5 {[%clk 0:01:13]} 23. Nxe5 {[%clk 0:01:22]}  Rxe5 {[%clk 0:01:10]} 24. Be3 {[%clk 0:01:08]}  Qxc3 {[%clk 0:00:48]} 25. Qg4 {[%clk 0:01:08]}  Red5 {[%clk 0:00:35]} 26. Qf3 {[%clk 0:01:00]}  Ne5 {[%clk 0:00:34]} 27. Qe4 {[%clk 0:00:56]}  Nd3 {[%clk 0:00:29]} 28. Rf1 {[%clk 0:00:55]}  h6 {[%clk 0:00:19]} 29. h3 {[%clk 0:00:55]}  Qe5 {[%clk 0:00:18]} 30. Qf3 {[%clk 0:00:54]}  Rc8 {[%clk 0:00:15]} 31. Rad1 {[%clk 0:00:48]}  Bc5 {[%clk 0:00:12]} 32. Kh1 {[%clk 0:00:38]}  Bxe3 {[%clk 0:00:12]} 33. fxe3 {[%clk 0:00:39]}  Rf8 {[%clk 0:00:07]} 34. e4 {[%clk 0:00:39]}  Rd4 {[%clk 0:00:02]} 35. Rxd3 {[%clk 0:00:39]}  Rxd3 {[%clk 0:00:02]} 36. Qxd3 {[%clk 0:00:40]}  Rc8 {[%clk 0:00:02]} 37. Ne2 {[%clk 0:00:38]}  f6 {[%clk 0:00:03]} 38. Nf4 {[%clk 0:00:37]}  Kh7 {[%clk 0:00:02]} 39. Qd7 {[%clk 0:00:36]}  Rc2 {[%clk 0:00:01]} 40. Qxe6 {[%clk 0:00:35]}  Qb2 {[%clk 0:00:01]} 41. Qf5+ {[%clk 0:00:34]}  Kh8 {[%clk 0:00:01]} 1-0


[Site "https://www.chess.com"]

[Event "Early Titled Tuesday Blitz | February 8 2022"]
[White "Van Foreest, Jorden"]
[Black "Thomas, Anysia"]
[WhiteFideId "1039784"]
[BlackFideId "670472"]
[WhiteElo "2609"]
[BlackElo "2002"]
[Result "1-0"]
[Round "02"]
[TimeControl "180+1"]
[Date "2022.02.08"]
[WhiteClock "0:01:51"]
[BlackClock "0:00:20"]

1. e4 {[%clk 0:02:58]}  c5 {[%clk 0:02:56]} 2. Nc3 {[%clk 0:02:57]}  Nc6 {[%clk 0:02:55]} 3. Bb5 {[%clk 0:02:55]}  Nd4 {[%clk 0:02:55]} 4. Nf3 {[%clk 0:02:54]}  g6 {[%clk 0:02:55]} 5. Bc4 {[%clk 0:02:50]}  Bg7 {[%clk 0:02:54]} 6. h4 {[%clk 0:02:49]}  h5 {[%clk 0:02:47]} 7. Ng5 {[%clk 0:02:47]}  Nh6 {[%clk 0:02:44]} 8. d3 {[%clk 0:02:46]}  a6 {[%clk 0:02:34]} 9. a4 {[%clk 0:02:43]}  d6 {[%clk 0:02:10]} 10. Bf4 {[%clk 0:02:39]}  O-O {[%clk 0:02:06]} 11. O-O {[%clk 0:02:35]}  b6 {[%clk 0:02:06]} 12. Nb1 {[%clk 0:02:29]}  Rb8 {[%clk 0:01:59]} 13. c3 {[%clk 0:02:26]}  Nc6 {[%clk 0:01:59]} 14. Nd2 {[%clk 0:02:24]}  b5 {[%clk 0:01:56]} 15. axb5 {[%clk 0:02:23]}  axb5 {[%clk 0:01:57]} 16. Bb3 {[%clk 0:02:23]}  Bg4 {[%clk 0:01:53]} 17. Qe1 {[%clk 0:02:19]}  Ne5 {[%clk 0:01:49]} 18. f3 {[%clk 0:02:17]}  Nxd3 {[%clk 0:01:46]} 19. Qe3 {[%clk 0:02:17]}  Nxf4 {[%clk 0:01:29]} 20. fxg4 {[%clk 0:02:18]}  Nxg2 {[%clk 0:00:47]} 21. Kxg2 {[%clk 0:02:14]}  Nxg4 {[%clk 0:00:47]} 22. Qg3 {[%clk 0:02:08]}  c4 {[%clk 0:00:47]} 23. Bd1 {[%clk 0:02:07]}  Qb6 {[%clk 0:00:47]} 24. Bxg4 {[%clk 0:02:07]}  hxg4 {[%clk 0:00:45]} 25. Qxg4 {[%clk 0:02:02]}  Qe3 {[%clk 0:00:45]} 26. Ndf3 {[%clk 0:02:01]}  b4 {[%clk 0:00:45]} 27. Rae1 {[%clk 0:01:59]}  Qd3 {[%clk 0:00:40]} 28. h5 {[%clk 0:01:52]}  bxc3 {[%clk 0:00:36]} 29. hxg6 {[%clk 0:01:51]}  Rxb2+ {[%clk 0:00:36]} 30. Kh3 {[%clk 0:01:50]}  fxg6 {[%clk 0:00:20]} 31. Qe6+ {[%clk 0:01:51]}  Kh8 {[%clk 0:00:20]} 32. Qxg6 {[%clk 0:01:51]} 1-0


[Site "https://www.chess.com"]